[Event "FIDE Women's Grand Swiss 2023"]
[Site "Villa Marina, Douglas, Isle of Man, Isle Of Man"]
[Date "2023.10.30"]
[Round "6.19"]
[White "Vantika, Agrawal"]
[Black "Mkrtchyan, Mariam"]
[Result "0-1"]
[TimeControl "40/90 + 30 + 30s/move"]
[WhiteFideId "25050389"]
[BlackFideId "13310828"]
[WhiteElo "2435"]
[BlackElo "2343"]

1. c4 {[%clk 01:30:37]} {[%emt 00:00:22]} e6 {[%clk 01:28:43]} {[%emt
00:02:18]} 2. Nf3 {[%clk 01:30:15]} {[%emt 00:00:52]} d5 {[%clk 01:29:06]}
{[%emt 00:00:07]} 3. g3 {[%clk 01:30:29]} {[%emt 00:00:16]} dxc4 {[%clk
01:29:08]} {[%emt 00:00:29]} 4. Qa4+ {[%clk 01:28:45]} {[%emt 00:02:14]} Nd7
{[%clk 01:29:32]} {[%emt 00:00:05]} 5. Qxc4 {[%clk 01:28:33]} {[%emt 00:00:42]}
a6 {[%clk 01:30:00]} {[%emt 00:00:03]} 6. Qc2 {[%clk 01:25:45]} {[%emt
00:03:17]} b5 {[%clk 01:27:02]} {[%emt 00:03:28]} 7. Bg2 {[%clk 01:19:42]}
{[%emt 00:06:33]} Bb7 {[%clk 01:27:25]} {[%emt 00:00:06]} 8. O-O {[%clk
01:10:34]} {[%emt 00:09:39]} Ngf6 {[%clk 01:27:33]} {[%emt 00:00:23]} 9. a4
{[%clk 01:08:46]} {[%emt 00:02:17]} c5 {[%clk 01:25:01]} {[%emt 00:03:02]} 10.
Nc3 {[%clk 01:03:41]} {[%emt 00:05:36]} Qb6 {[%clk 01:11:53]} {[%emt 00:13:37]}
11. d3 {[%clk 00:59:00]} {[%emt 00:05:11]} Be7 {[%clk 01:07:44]} {[%emt
00:04:39]} 12. axb5 {[%clk 00:53:26]} {[%emt 00:06:04]} axb5 {[%clk 01:08:10]}
{[%emt 00:00:04]} 13. Rxa8+ {[%clk 00:53:51]} {[%emt 00:00:05]} Bxa8 {[%clk
01:08:37]} {[%emt 00:00:04]} 14. Qb3 {[%clk 00:51:18]} {[%emt 00:03:02]} b4
{[%clk 01:06:27]} {[%emt 00:02:40]} 15. Nb1 {[%clk 00:44:00]} {[%emt 00:07:47]}
O-O {[%clk 01:06:12]} {[%emt 00:00:45]} 16. Nbd2 {[%clk 00:42:51]} {[%emt
00:01:40]} Qa6 {[%clk 01:03:54]} {[%emt 00:02:47]} 17. Nc4 {[%clk 00:39:03]}
{[%emt 00:04:19]} Bc6 {[%clk 00:57:53]} {[%emt 00:06:31]} 18. Nfe5 {[%clk
00:35:06]} {[%emt 00:04:27]} Nxe5 {[%clk 00:52:00]} {[%emt 00:06:23]} 19. Nxe5
{[%clk 00:34:57]} {[%emt 00:00:39]} Bd5 {[%clk 00:49:41]} {[%emt 00:02:50]} 20.
Qc2 {[%clk 00:28:40]} {[%emt 00:06:47]} Qa2 {[%clk 00:45:16]} {[%emt 00:04:54]}
21. e4 {[%clk 00:24:16]} {[%emt 00:04:54]} Bb3 {[%clk 00:41:26]} {[%emt
00:04:20]} 22. Qe2 {[%clk 00:24:20]} {[%emt 00:00:25]} Rc8 {[%clk 00:36:55]}
{[%emt 00:05:02]} 23. Be3 {[%clk 00:21:31]} {[%emt 00:03:17]} Bd6 {[%clk
00:35:21]} {[%emt 00:02:06]} 24. Bf4 {[%clk 00:14:09]} {[%emt 00:07:52]} Ne8
{[%clk 00:27:50]} {[%emt 00:08:00]} 25. Rc1 {[%clk 00:08:26]} {[%emt 00:06:14]}
f6 {[%clk 00:28:06]} {[%emt 00:00:15]} 26. Nc4 {[%clk 00:05:53]} {[%emt
00:03:02]} Bxf4 {[%clk 00:24:19]} {[%emt 00:04:16]} 27. gxf4 {[%clk 00:06:18]}
{[%emt 00:00:06]} Bxc4 {[%clk 00:24:47]} {[%emt 00:00:02]} 28. dxc4 {[%clk
00:06:37]} {[%emt 00:00:11]} Rd8 {[%clk 00:24:55]} {[%emt 00:00:22]} 29. e5
{[%clk 00:01:32]} {[%emt 00:05:35]} f5 {[%clk 00:24:59]} {[%emt 00:00:26]} 30.
Bc6 {[%clk 00:01:46]} {[%emt 00:00:16]} Nc7 {[%clk 00:24:21]} {[%emt 00:01:07]}
31. Rd1 {[%clk 00:01:15]} {[%emt 00:01:02]} Rd4 {[%clk 00:24:44]} {[%emt
00:00:07]} 32. Kg2 {[%clk 00:00:34]} {[%emt 00:01:10]} h6 {[%clk 00:22:24]}
{[%emt 00:02:51]} 33. Rxd4 {[%clk 00:00:33]} {[%emt 00:00:31]} cxd4 {[%clk
00:22:53]} {[%emt 00:00:01]} 34. c5 {[%clk 00:00:33]} {[%emt 00:00:30]} Qa6
{[%clk 00:19:42]} {[%emt 00:03:41]} 35. Qf3 {[%clk 00:00:32]} {[%emt 00:00:31]}
Qc4 {[%clk 00:18:45]} {[%emt 00:01:27]} 36. Ba4 {[%clk 00:00:34]} {[%emt
00:00:29]} Qxc5 {[%clk 00:18:30]} {[%emt 00:00:45]} 37. Bb3 {[%clk 00:00:41]}
{[%emt 00:00:22]} Kh7 {[%clk 00:15:32]} {[%emt 00:03:27]} 38. h4 {[%clk
00:00:39]} {[%emt 00:00:33]} Qc1 {[%clk 00:12:38]} {[%emt 00:03:24]} 39. Qb7
{[%clk 00:00:39]} {[%emt 00:00:30]} d3 {[%clk 00:10:58]} {[%emt 00:02:09]} 40.
Qxb4 {[%clk 00:00:36]} {[%emt 00:00:33]} Qxb2 {[%clk 00:10:02]} {[%emt
00:01:26]} 41. Qa4 {[%clk 00:19:41]} {[%emt 00:11:26]} d2 {[%clk 00:37:56]}
{[%emt 00:02:36]} 42. h5 {[%clk 00:14:42]} {[%emt 00:05:29]} Qc3 {[%clk
00:36:36]} {[%emt 00:01:49]} 43. Bd1 {[%clk 00:12:11]} {[%emt 00:03:01]} Nd5
{[%clk 00:35:53]} {[%emt 00:01:13]} 44. Kh2 {[%clk 00:04:38]} {[%emt 00:08:03]}
Qb4 {[%clk 00:34:55]} {[%emt 00:01:28]} 45. Qe8 {[%clk 00:02:31]} {[%emt
00:02:37]} Qxf4+ {[%clk 00:35:18]} {[%emt 00:00:07]} 46. Kg2 {[%clk 00:01:50]}
{[%emt 00:01:11]} Qg5+ {[%clk 00:35:42]} {[%emt 00:00:06]} 47. Kf3 {[%clk
00:00:33]} {[%emt 00:01:48]} Qg4# {[%clk 00:35:56]} {[%emt 00:00:16]} 0-1

[Event "FIDE Women's Grand Swiss 2023"]
[Site "Villa Marina, Douglas, Isle of Man, Isle Of Man"]
[Date "2023.10.30"]
[Round "6.20"]
[White "Danielian, Elina"]
[Black "Sandu, Mihaela"]
[Result "1-0"]
[TimeControl "40/90 + 30 + 30s/move"]
[WhiteFideId "13300210"]
[BlackFideId "1204327"]
[WhiteElo "2416"]
[BlackElo "2298"]

1. d4 {[%clk 01:30:57]} {[%emt 00:00:02]} Nf6 {[%clk 01:30:56]} {[%emt
00:00:05]} 2. c4 {[%clk 01:31:19]} {[%emt 00:00:08]} e6 {[%clk 01:31:16]}
{[%emt 00:00:09]} 3. Nc3 {[%clk 01:31:43]} {[%emt 00:00:06]} Bb4 {[%clk
01:31:33]} {[%emt 00:00:13]} 4. e3 {[%clk 01:31:51]} {[%emt 00:00:23]} O-O
{[%clk 01:31:25]} {[%emt 00:00:37]} 5. Bd3 {[%clk 01:31:57]} {[%emt 00:00:24]}
d5 {[%clk 01:31:24]} {[%emt 00:00:30]} 6. Nf3 {[%clk 01:32:19]} {[%emt
00:00:09]} dxc4 {[%clk 01:30:54]} {[%emt 00:01:01]} 7. Bxc4 {[%clk 01:32:44]}
{[%emt 00:00:04]} c5 {[%clk 01:30:47]} {[%emt 00:00:37]} 8. O-O {[%clk
01:33:09]} {[%emt 00:00:05]} Bd7 {[%clk 01:29:13]} {[%emt 00:02:04]} 9. dxc5
{[%clk 01:14:56]} {[%emt 00:18:44]} Nc6 {[%clk 01:23:06]} {[%emt 00:06:36]} 10.
Bd3 {[%clk 01:01:02]} {[%emt 00:14:23]} Bxc5 {[%clk 01:21:39]} {[%emt
00:01:59]} 11. a3 {[%clk 01:01:29]} {[%emt 00:00:03]} Qb8 {[%clk 00:46:50]}
{[%emt 00:35:18]} 12. Ne4 {[%clk 00:51:24]} {[%emt 00:10:36]} Be7 {[%clk
00:46:02]} {[%emt 00:01:18]} 13. Nxf6+ {[%clk 00:50:07]} {[%emt 00:01:46]} gxf6
{[%clk 00:35:00]} {[%emt 00:11:32]} 14. Bd2 {[%clk 00:49:34]} {[%emt 00:01:04]}
Qd6 {[%clk 00:23:24]} {[%emt 00:12:05]} 15. Bc3 {[%clk 00:49:34]} {[%emt
00:00:30]} Qd5 {[%clk 00:23:38]} {[%emt 00:00:15]} 16. e4 {[%clk 00:43:18]}
{[%emt 00:06:47]} Qh5 {[%clk 00:24:04]} {[%emt 00:00:04]} 17. Be2 {[%clk
00:43:42]} {[%emt 00:00:06]} Be8 {[%clk 00:21:17]} {[%emt 00:03:17]} 18. Ne5
{[%clk 00:39:25]} {[%emt 00:04:47]} Qh4 {[%clk 00:16:34]} {[%emt 00:05:13]} 19.
g3 {[%clk 00:35:14]} {[%emt 00:04:41]} Qh3 {[%clk 00:16:07]} {[%emt 00:00:57]}
20. Ng4 {[%clk 00:21:37]} {[%emt 00:14:08]} Rd8 {[%clk 00:16:31]} {[%emt
00:00:05]} 21. Qc1 {[%clk 00:21:04]} {[%emt 00:01:02]} Nd4 {[%clk 00:16:33]}
{[%emt 00:00:29]} 22. Bxd4 {[%clk 00:21:30]} {[%emt 00:00:04]} Rxd4 {[%clk
00:16:57]} {[%emt 00:00:07]} 23. Qc7 {[%clk 00:12:42]} {[%emt 00:09:17]} Bd8
{[%clk 00:15:21]} {[%emt 00:02:06]} 24. Qxb7 {[%clk 00:13:00]} {[%emt
00:00:12]} Rd7 {[%clk 00:15:00]} {[%emt 00:00:52]} 25. Qb3 {[%clk 00:11:03]}
{[%emt 00:02:26]} h5 {[%clk 00:15:00]} {[%emt 00:00:30]} 26. Ne3 {[%clk
00:11:02]} {[%emt 00:00:31]} Bb6 {[%clk 00:14:28]} {[%emt 00:01:03]} 27. Rfd1
{[%clk 00:10:42]} {[%emt 00:00:50]} Rxd1+ {[%clk 00:13:48]} {[%emt 00:01:09]}
28. Rxd1 {[%clk 00:11:05]} {[%emt 00:00:07]} e5 {[%clk 00:13:58]} {[%emt
00:00:21]} 29. Rd6 {[%clk 00:06:03]} {[%emt 00:05:32]} Qc8 {[%clk 00:13:38]}
{[%emt 00:00:49]} 30. Nf5 {[%clk 00:04:32]} {[%emt 00:02:01]} Qc1+ {[%clk
00:11:19]} {[%emt 00:02:50]} 31. Kg2 {[%clk 00:03:47]} {[%emt 00:01:13]} Bc7
{[%clk 00:09:45]} {[%emt 00:02:05]} 32. Rxf6 {[%clk 00:03:06]} {[%emt
00:01:12]} Bd8 {[%clk 00:10:10]} {[%emt 00:00:04]} 33. Rg6+ {[%clk 00:02:51]}
{[%emt 00:00:45]} Kh8 {[%clk 00:09:56]} {[%emt 00:00:44]} 34. Qb4 {[%clk
00:02:31]} {[%emt 00:00:51]} Rg8 {[%clk 00:09:44]} {[%emt 00:00:41]} 35. Rh6+
{[%clk 00:02:51]} {[%emt 00:00:11]} 1-0

[Event "FIDE Women's Grand Swiss 2023"]
[Site "Villa Marina, Douglas, Isle of Man, Isle Of Man"]
[Date "2023.10.30"]
[Round "6.21"]
[White "Arakhamia-Grant, Ketevan"]
[Black "Roebers, Eline"]
[Result "1/2-1/2"]
[TimeControl "40/90 + 30 + 30s/move"]
[WhiteFideId "13600168"]
[BlackFideId "1058401"]
[WhiteElo "2297"]
[BlackElo "2390"]

1. e4 {[%clk 01:30:58]} {[%emt 00:00:02]} c5 {[%clk 01:30:56]} {[%emt
00:00:04]} 2. Nf3 {[%clk 01:31:20]} {[%emt 00:00:09]} d6 {[%clk 01:31:14]}
{[%emt 00:00:12]} 3. Bb5+ {[%clk 01:25:58]} {[%emt 00:05:52]} Nd7 {[%clk
01:31:25]} {[%emt 00:00:19]} 4. O-O {[%clk 01:26:11]} {[%emt 00:00:17]} a6
{[%clk 01:30:59]} {[%emt 00:00:56]} 5. Bd3 {[%clk 01:26:14]} {[%emt 00:00:28]}
Ngf6 {[%clk 01:31:21]} {[%emt 00:00:07]} 6. Re1 {[%clk 01:21:24]} {[%emt
00:05:20]} g6 {[%clk 01:28:45]} {[%emt 00:03:05]} 7. a4 {[%clk 01:16:16]}
{[%emt 00:05:39]} b6 {[%clk 01:22:06]} {[%emt 00:07:10]} 8. Bf1 {[%clk
00:56:55]} {[%emt 00:19:50]} Bb7 {[%clk 01:20:23]} {[%emt 00:02:13]} 9. Nc3
{[%clk 00:54:30]} {[%emt 00:02:55]} Bg7 {[%clk 01:20:40]} {[%emt 00:00:13]} 10.
d4 {[%clk 00:47:35]} {[%emt 00:07:25]} cxd4 {[%clk 01:20:59]} {[%emt 00:00:10]}
11. Nxd4 {[%clk 00:48:02]} {[%emt 00:00:04]} Rc8 {[%clk 01:17:24]} {[%emt
00:04:04]} 12. f3 {[%clk 00:47:17]} {[%emt 00:01:15]} O-O {[%clk 01:17:32]}
{[%emt 00:00:22]} 13. Be3 {[%clk 00:40:48]} {[%emt 00:07:00]} Ne5 {[%clk
01:14:09]} {[%emt 00:03:53]} 14. Qd2 {[%clk 00:39:32]} {[%emt 00:01:46]} Nc4
{[%clk 01:13:05]} {[%emt 00:01:34]} 15. Bxc4 {[%clk 00:37:58]} {[%emt
00:02:05]} Rxc4 {[%clk 01:13:30]} {[%emt 00:00:05]} 16. Rad1 {[%clk 00:37:09]}
{[%emt 00:01:18]} Qc7 {[%clk 01:06:25]} {[%emt 00:07:35]} 17. Nde2 {[%clk
00:30:03]} {[%emt 00:07:37]} Rc8 {[%clk 00:59:16]} {[%emt 00:07:38]} 18. Bd4
{[%clk 00:28:07]} {[%emt 00:02:25]} Ba8 {[%clk 00:47:44]} {[%emt 00:12:02]} 19.
Kh1 {[%clk 00:27:01]} {[%emt 00:01:37]} Qb8 {[%clk 00:39:24]} {[%emt 00:08:50]}
20. b3 {[%clk 00:19:52]} {[%emt 00:07:39]} R4c6 {[%clk 00:35:45]} {[%emt
00:04:09]} 21. Bxf6 {[%clk 00:15:34]} {[%emt 00:04:48]} Bxf6 {[%clk 00:36:07]}
{[%emt 00:00:07]} 22. Nd5 {[%clk 00:15:56]} {[%emt 00:00:08]} Rxc2 {[%clk
00:36:24]} {[%emt 00:00:13]} 23. Nxf6+ {[%clk 00:16:12]} {[%emt 00:00:15]} exf6
{[%clk 00:36:50]} {[%emt 00:00:04]} 24. Qf4 {[%clk 00:07:46]} {[%emt 00:08:55]}
d5 {[%clk 00:29:33]} {[%emt 00:07:48]} 25. Qxb8 {[%clk 00:06:08]} {[%emt
00:02:08]} Rxb8 {[%clk 00:29:58]} {[%emt 00:00:04]} 26. exd5 {[%clk 00:06:31]}
{[%emt 00:00:07]} Rd8 {[%clk 00:28:21]} {[%emt 00:02:07]} 27. Nf4 {[%clk
00:04:09]} {[%emt 00:02:54]} Kf8 {[%clk 00:26:57]} {[%emt 00:01:53]} 28. h4
{[%clk 00:03:57]} {[%emt 00:00:42]} Rc3 {[%clk 00:25:20]} {[%emt 00:02:07]} 29.
b4 {[%clk 00:04:04]} {[%emt 00:00:23]} Rc4 {[%clk 00:17:58]} {[%emt 00:07:51]}
30. Re4 {[%clk 00:04:14]} {[%emt 00:00:20]} Rxe4 {[%clk 00:17:06]} {[%emt
00:01:22]} 31. fxe4 {[%clk 00:04:40]} {[%emt 00:00:05]} Rc8 {[%clk 00:12:53]}
{[%emt 00:04:43]} 32. Rd4 {[%clk 00:02:59]} {[%emt 00:02:11]} Ke7 {[%clk
00:11:53]} {[%emt 00:01:30]} 33. Kh2 {[%clk 00:02:15]} {[%emt 00:01:14]} Kd6
{[%clk 00:11:12]} {[%emt 00:01:11]} 34. Nd3 {[%clk 00:01:47]} {[%emt 00:00:57]}
Rc2 {[%clk 00:08:43]} {[%emt 00:03:00]} 35. Kg3 {[%clk 00:02:10]} {[%emt
00:00:08]} Bb7 {[%clk 00:04:35]} {[%emt 00:04:38]} 36. Kf3 {[%clk 00:02:07]}
{[%emt 00:00:33]} Bc8 {[%clk 00:04:06]} {[%emt 00:00:59]} 37. a5 {[%clk
00:01:15]} {[%emt 00:01:22]} bxa5 {[%clk 00:03:34]} {[%emt 00:01:01]} 38. bxa5
{[%clk 00:01:40]} {[%emt 00:00:05]} Bd7 {[%clk 00:02:41]} {[%emt 00:01:23]} 39.
Nb4 {[%clk 00:00:47]} {[%emt 00:01:24]} Rc3+ {[%clk 00:01:11]} {[%emt
00:02:00]} 40. Rd3 {[%clk 00:00:46]} {[%emt 00:00:30]} Rc5 {[%clk 00:00:35]}
{[%emt 00:01:05]} 41. Ra3 {[%clk 00:26:28]} {[%emt 00:04:48]} Bb5 {[%clk
00:29:34]} {[%emt 00:01:30]} 42. Ke3 {[%clk 00:22:35]} {[%emt 00:04:24]} h5
{[%clk 00:27:55]} {[%emt 00:02:09]} 43. g3 {[%clk 00:11:41]} {[%emt 00:11:24]}
Rc1 {[%clk 00:21:02]} {[%emt 00:07:22]} 44. Rb3 {[%clk 00:10:23]} {[%emt
00:01:49]} Kd7 {[%clk 00:20:49]} {[%emt 00:00:43]} 45. Nd3 {[%clk 00:07:49]}
{[%emt 00:03:04]} Rg1 {[%clk 00:20:37]} {[%emt 00:00:41]} 46. Kf2 {[%clk
00:05:20]} {[%emt 00:02:59]} Ra1 {[%clk 00:20:14]} {[%emt 00:00:53]} 47. Nc5+
{[%clk 00:05:25]} {[%emt 00:00:27]} Ke7 {[%clk 00:16:50]} {[%emt 00:03:53]} 48.
Rc3 {[%clk 00:04:08]} {[%emt 00:01:48]} Kd6 {[%clk 00:10:23]} {[%emt 00:06:55]}
49. Nb7+ {[%clk 00:04:12]} {[%emt 00:00:27]} Kd7 {[%clk 00:08:18]} {[%emt
00:02:34]} 50. Ke3 {[%clk 00:03:55]} {[%emt 00:00:48]} Rb1 {[%clk 00:07:38]}
{[%emt 00:01:10]} 51. Kd4 {[%clk 00:01:34]} {[%emt 00:02:51]} Be2 {[%clk
00:07:08]} {[%emt 00:00:59]} 52. Nc5+ {[%clk 00:01:40]} {[%emt 00:00:24]} Ke7
{[%clk 00:07:29]} {[%emt 00:00:09]} 53. Rb3 {[%clk 00:00:44]} {[%emt 00:01:27]}
Rd1+ {[%clk 00:07:35]} {[%emt 00:00:23]} 54. Ke3 {[%clk 00:01:08]} {[%emt
00:00:07]} Bb5 {[%clk 00:08:00]} {[%emt 00:00:05]} 55. Rc3 {[%clk 00:01:31]}
{[%emt 00:00:07]} Re1+ {[%clk 00:07:50]} {[%emt 00:00:40]} 56. Kd4 {[%clk
00:01:39]} {[%emt 00:00:22]} Rd1+ {[%clk 00:08:15]} {[%emt 00:00:05]} 57. Ke3
{[%clk 00:02:07]} {[%emt 00:00:03]} g5 {[%clk 00:06:33]} {[%emt 00:02:11]} 58.
Nb7 {[%clk 00:01:49]} {[%emt 00:00:48]} Kd7 {[%clk 00:05:46]} {[%emt 00:01:17]}
59. Nc5+ {[%clk 00:01:52]} {[%emt 00:00:27]} Ke7 {[%clk 00:04:54]} {[%emt
00:01:22]} 60. Nb7 {[%clk 00:02:09]} {[%emt 00:00:13]} Kd7 {[%clk 00:05:17]}
{[%emt 00:00:07]} 1/2-1/2

[Event "FIDE Women's Grand Swiss 2023"]
[Site "Villa Marina, Douglas, Isle of Man, Isle Of Man"]
[Date "2023.10.30"]
[Round "6.22"]
[White "Kiolbasa, Oliwia"]
[Black "Terbe, Julianna"]
[Result "1/2-1/2"]
[TimeControl "40/90 + 30 + 30s/move"]
[WhiteFideId "1154613"]
[BlackFideId "708780"]
[WhiteElo "2375"]
[BlackElo "2266"]

1. e4 {[%clk 01:30:57]} {[%emt 00:00:02]} c5 {[%clk 01:30:51]} {[%emt
00:00:10]} 2. Nf3 {[%clk 01:31:17]} {[%emt 00:00:09]} Nc6 {[%clk 01:31:16]}
{[%emt 00:00:05]} 3. Bb5 {[%clk 01:31:33]} {[%emt 00:00:14]} g6 {[%clk
01:31:16]} {[%emt 00:00:31]} 4. Nc3 {[%clk 01:31:49]} {[%emt 00:00:14]} Bg7
{[%clk 01:29:31]} {[%emt 00:02:14]} 5. d3 {[%clk 01:31:45]} {[%emt 00:00:35]}
Nf6 {[%clk 01:25:45]} {[%emt 00:04:15]} 6. e5 {[%clk 01:30:49]} {[%emt
00:01:26]} Ng4 {[%clk 01:24:27]} {[%emt 00:01:49]} 7. Bxc6 {[%clk 01:30:25]}
{[%emt 00:00:54]} dxc6 {[%clk 01:24:43]} {[%emt 00:00:14]} 8. Qe2 {[%clk
01:30:08]} {[%emt 00:00:46]} O-O {[%clk 01:17:51]} {[%emt 00:07:23]} 9. O-O
{[%clk 01:29:40]} {[%emt 00:00:57]} Nh6 {[%clk 01:12:24]} {[%emt 00:05:58]} 10.
Ne4 {[%clk 01:20:37]} {[%emt 00:09:33]} b6 {[%clk 01:06:54]} {[%emt 00:06:00]}
11. h3 {[%clk 01:18:49]} {[%emt 00:02:17]} f6 {[%clk 01:03:30]} {[%emt
00:03:55]} 12. a4 {[%clk 01:01:17]} {[%emt 00:18:02]} a5 {[%clk 00:59:03]}
{[%emt 00:04:56]} 13. Ng3 {[%clk 01:00:18]} {[%emt 00:01:29]} Nf5 {[%clk
00:44:10]} {[%emt 00:15:24]} 14. Nxf5 {[%clk 00:49:10]} {[%emt 00:11:38]} Bxf5
{[%clk 00:44:34]} {[%emt 00:00:06]} 15. e6 {[%clk 00:49:32]} {[%emt 00:00:08]}
g5 {[%clk 00:44:47]} {[%emt 00:00:17]} 16. Nd2 {[%clk 00:49:06]} {[%emt
00:00:54]} Qd5 {[%clk 00:38:32]} {[%emt 00:06:46]} 17. Re1 {[%clk 00:46:56]}
{[%emt 00:02:40]} b5 {[%clk 00:37:07]} {[%emt 00:01:56]} 18. Nf1 {[%clk
00:34:33]} {[%emt 00:12:52]} h5 {[%clk 00:26:51]} {[%emt 00:10:46]} 19. Ne3
{[%clk 00:25:02]} {[%emt 00:10:01]} Qxe6 {[%clk 00:25:20]} {[%emt 00:02:01]} 20.
Qxh5 {[%clk 00:25:23]} {[%emt 00:00:08]} Bh7 {[%clk 00:21:57]} {[%emt
00:03:54]} 21. Bd2 {[%clk 00:23:29]} {[%emt 00:02:24]} Qf7 {[%clk 00:15:00]}
{[%emt 00:07:26]} 22. Qxf7+ {[%clk 00:18:32]} {[%emt 00:05:27]} Kxf7 {[%clk
00:15:26]} {[%emt 00:00:05]} 23. axb5 {[%clk 00:18:56]} {[%emt 00:00:06]} cxb5
{[%clk 00:15:53]} {[%emt 00:00:03]} 24. Nd5 {[%clk 00:19:01]} {[%emt 00:00:25]}
e5 {[%clk 00:13:13]} {[%emt 00:03:10]} 25. Nc7 {[%clk 00:18:09]} {[%emt
00:01:22]} Rab8 {[%clk 00:13:08]} {[%emt 00:00:36]} 26. Rxa5 {[%clk 00:17:36]}
{[%emt 00:01:01]} c4 {[%clk 00:13:16]} {[%emt 00:00:22]} 27. Nxb5 {[%clk
00:12:37]} {[%emt 00:05:29]} cxd3 {[%clk 00:13:38]} {[%emt 00:00:08]} 28. c4
{[%clk 00:12:51]} {[%emt 00:00:16]} e4 {[%clk 00:08:23]} {[%emt 00:05:45]} 29.
b4 {[%clk 00:12:36]} {[%emt 00:00:44]} f5 {[%clk 00:05:57]} {[%emt 00:02:57]}
30. Bxg5 {[%clk 00:09:02]} {[%emt 00:04:04]} Be5 {[%clk 00:06:22]} {[%emt
00:00:06]} 31. Bd2 {[%clk 00:07:38]} {[%emt 00:01:54]} f4 {[%clk 00:05:15]}
{[%emt 00:01:37]} 32. c5 {[%clk 00:01:57]} {[%emt 00:06:11]} Ke6 {[%clk
00:05:20]} {[%emt 00:00:25]} 33. Ra6+ {[%clk 00:01:52]} {[%emt 00:00:35]} Kd5
{[%clk 00:05:33]} {[%emt 00:00:17]} 34. Nc3+ {[%clk 00:01:46]} {[%emt
00:00:36]} Bxc3 {[%clk 00:05:48]} {[%emt 00:00:15]} 35. Bxc3 {[%clk 00:02:14]}
{[%emt 00:00:02]} e3 {[%clk 00:05:07]} {[%emt 00:01:11]} 36. fxe3 {[%clk
00:02:13]} {[%emt 00:00:30]} f3 {[%clk 00:05:35]} {[%emt 00:00:03]} 37. Rf1
{[%clk 00:00:36]} {[%emt 00:02:07]} fxg2 {[%clk 00:04:27]} {[%emt 00:01:37]} 38.
Rxf8 {[%clk 00:00:59]} {[%emt 00:00:07]} Rxf8 {[%clk 00:04:55]} {[%emt
00:00:03]} 39. Kxg2 {[%clk 00:00:45]} {[%emt 00:00:43]} Be4+ {[%clk 00:04:56]}
{[%emt 00:00:30]} 40. Kg1 {[%clk 00:00:36]} {[%emt 00:00:39]} Rg8+ {[%clk
00:01:56]} {[%emt 00:03:30]} 41. Kf1 {[%clk 00:23:00]} {[%emt 00:08:05]} Kc4
{[%clk 00:24:09]} {[%emt 00:08:18]} 42. Bd2 {[%clk 00:05:52]} {[%emt 00:17:38]}
Bg2+ {[%clk 00:13:42]} {[%emt 00:10:56]} 43. Ke1 {[%clk 00:03:38]} {[%emt
00:02:44]} Bxh3 {[%clk 00:13:00]} {[%emt 00:01:13]} 44. Rd6 {[%clk 00:03:30]}
{[%emt 00:00:38]} Rg1+ {[%clk 00:11:32]} {[%emt 00:01:57]} 45. Kf2 {[%clk
00:03:57]} {[%emt 00:00:02]} Rg2+ {[%clk 00:11:58]} {[%emt 00:00:06]} 46. Ke1
{[%clk 00:04:20]} {[%emt 00:00:06]} Rg1+ {[%clk 00:12:25]} {[%emt 00:00:03]} 47.
Kf2 {[%clk 00:04:44]} {[%emt 00:00:06]} Rg2+ {[%clk 00:12:52]} {[%emt
00:00:03]} 1/2-1/2